Cogmind - Beta 16 --- EXPLORER MODE // 2026.01.16 @ 11:04:46 Player: K.K.Y. Result: Destroyed by Autobeam Turret with Autobeam Performance ------------- Evolutions (0) 0 Regions Visited (3) 600 Robots Destroyed (51) 255 Value Destroyed (1229) 1229 Prototype IDs (2) 40 Alien Tech Used (0) 0 Bonus (-317) -317 TOTAL SCORE: 1807 Bonus ------- Friendly Fire -317 Cogmind --------- Core Integrity 0/250 Matter 300/300 Energy 170/170 System Corruption 0% Temperature Cool (6) Movement Core (800) Ox15 Location -10/Subcaves Parts ------- > --- POWER (1) -------- Makeshift Power Source > --- PROPULSION (2) --- (None) > --- UTILITY (3) ------ Large Storage Unit Structural Scanner Sensor Drone Bay (19/20) > --- WEAPON (2) ------- Beam Rifle Beamcaster > --- INVENTORY (15) --- Improved Heat Sink Medium Storage Unit Light Humpback Machine Analyzer Sensor Array Improved Terrain Scanner Terrain Scan Processor Transport Network Coupler Launcher Guidance Computer Medium Laser Medium Laser Heavy Battle Rifle Battle Cannon Multitool Peak State ------------ > --- POWER ------------ Light Angular Momentum Engine > --- PROPULSION ------- Light Treads > --- UTILITY ---------- Improved Heat Sink Large Storage Unit Sensor Drone Bay > --- WEAPON ----------- Particle Gun Beamcaster > --- INVENTORY -------- Light Deuterium Engine Improved Heat Sink Improved Heat Sink Medium Storage Unit Machine Analyzer Sensor Array Improved Terrain Scanner Terrain Scan Processor Transport Network Coupler Launcher Guidance Computer Medium Laser Medium Laser Heavy Battle Rifle Battle Cannon Multitool [Rating: 28] Favorites ----------- Power Light Angular Momentum Engine Engine Light Angular Momentum Engine Propulsion Light Treads Treads Light Treads Flight Unit Improved Flight Unit Utility Large Storage Unit Device Sensor Drone Bay Storage Large Storage Unit Protection Core Shielding Weapon Medium Laser Energy Gun Medium Laser Special Weapon Mining Laser Build | -11 -10 -10 -10 ------- Run | Yrd Mat Min Sub Slots Evolved 1 | . 1 . . Power . | . . . . Propulsion . | . . . . Utility 1 | . 1 . . Weapon . | . . . . Parts Attached 26 | 7 3 8 8 Power 6 | 1 . 4 1 Engine 6 | 1 . 4 1 Core . | . . . . Reactor . | . . . . Propulsion 5 | 2 2 1 . Treads 4 | 2 1 1 . Leg . | . . . . Wheel . | . . . . Hover . | . . . . Flight 1 | . 1 . . Utility 9 | 2 1 3 3 Device 6 | . . 3 3 Storage 1 | . 1 . . Processor . | . . . . Hackware . | . . . . Protection 2 | 2 . . . Artifact . | . . . . Weapon 6 | 2 . . 4 Energy Gun 5 | 2 . . 3 Energy Cannon . | . . . . Ballistic Gun . | . . . . Ballistic Cannon . | . . . . Launcher . | . . . . Special Weapon 1 | . . . 1 Impact Weapon . | . . . . Slashing Weapon . | . . . . Piercing Weapon . | . . . . Special Melee Weapon . | . . . . Unidentified Prototypes 2 | . 1 1 . Parts Lost 7 | . . 2 5 Power 1 | . . 1 . Propulsion 3 | . . 1 2 Utility 1 | . . . 1 Weapon 2 | . . . 2 Highest Loss Streak 2 | . . 1 2 To Critical Strikes . | . . . . Average Backups 13 | 2 9 14 13 Power . | . . 1 . Propulsion . | . 1 . . Utility 8 | 1 6 10 9 Weapon 2 | . 1 2 3 Tool/Special . | . . . . Unused Backups 14 | . . 1 13 Power 1 | . . 1 . Propulsion . | . . . . Utility 9 | . . . 9 Weapon 3 | . . . 3 Tool/Special 1 | . . . 1 Average Slot Usage (%) 89 | . 99 90 85 Engine 11 | . 12 11 12 Treads 18 | . 25 24 11 Device 16 | . . 12 24 Storage 11 | . 11 12 12 Protection 5 | . 25 2 . Energy Gun 24 | . 25 25 23 Peak Build Rating 28 | 7 11 22 28 Average Rating 19 | 6 9 18 24 On Entrance 9 | . 7 10 22 Avg Prop Armor Cover (%) . | . . . . Naked Turns . | . . . . Heaviest Build 52 | 13 33 48 52 Greatest Support 40 | 40 40 40 40 Greatest Overweight (x) 15 | 1 . 1 15 Average Overweight (x) 1 | . . . 4 Largest Inventory Capacity 15 | 5 15 15 15 Average Capacity 14 | 5 14 15 15 Most Carried 15 | 5 14 15 15 Average Carried 13 | 2 9 14 14 Final Capacity 15 | 5 15 15 15 Final Carried 15 | 4 14 14 15 Scrap Suit Usage (%) 5 | . . 19 . Class Distribution -------------------- 88% | Hacker-Mutant 6% | Scavenger-Mutant 5% | Hacker-Scrapper Dominant Class ---------------- Hacker-Mutant | -10/Materials Hacker-Mutant | -10/Mines Hacker-Mutant | -10/Subcaves Resources | -11 -10 -10 -10 ----------- Run | Yrd Mat Min Sub Matter Collected 570 | 270 90 90 120 Remotely . | . . . . Salvage Created 1711 | 224 554 282 651 Parts 98 | 17 42 13 26 Haulers Intercepted 2 | . 2 . . Recyclers Shooed 2 | 1 1 . . Parts Field Recycled . | . . . . Retrieved Matter . | . . . . Parts Self-Destructed . | . . . . Prevented . | . . . . Parts Restored . | . . . . Kills | -11 -10 -10 -10 ------- Run | Yrd Mat Min Sub Combat Hostiles Destroyed 29 | . 8 6 15 Guns 23 | . 6 5 12 Cannons 1 | . . . 1 Classes Destroyed 15 | 3 6 1 5 Worker 1 | 1 . . . Builder 5 | . 5 . . Tunneler 6 | 6 . . . Hauler 2 | . 2 . . Recycler 1 | 1 . . . Mechanic 1 | . 1 . . Turret 1 | . . . 1 Watcher 2 | . 2 . . Swarmer 4 | . 2 . 2 Grunt 10 | . 6 4 . Sentry 1 | . . . 1 Demolisher 2 | . . 2 . Artisan 2 | . . . 2 Subdweller 12 | . . . 12 Zionite 2 | . . . 2 Thug 1 | . . 1 . Best Kill Streak 5 | 2 5 2 2 Combat Bots Only 4 | . 4 2 2 Max Kills in Single Turn 1 | 1 1 1 1 Gunslinging . | . . . . Exploded . | . . . . Melee . | . . . . Uniques/NPCs Destroyed . | . . . . Combat | -11 -10 -10 -10 -------- Run | Yrd Mat Min Sub Hostile Shots Fired 208 | . 45 29 134 Missed 57 | . 6 9 42 Hits 151 | . 39 20 92 Projectile 151 | . 39 20 92 AOE 7 | . . 7 . Critical Strikes 7 | . 3 . 4 Damage Taken 1654 | . 305 280 1069 Core 253 | . 40 42 171 Absorbed by Shields . | . . . . Redirected to Shielding 13 | . 7 6 . Ignored by Resistances 1010 | . 193 170 647 Core Remaining (%) 100 | 100 . . . Volleys Fired 165 | 11 44 21 89 Largest 2 | 2 2 2 2 Hottest 165 | 100 100 100 165 Shots Fired 321 | 22 87 42 170 Gun 315 | 22 87 42 164 Cannon . | . . . . Launcher . | . . . . Special 6 | . . . 6 Kinetic . | . . . . Thermal 321 | 22 87 42 170 Explosive . | . . . . Electromagnetic . | . . . . Robot Hit Streak 38 | 10 16 9 38 Robot Miss Streak 2 | 1 2 2 2 Penetration Max . | . . . . Secondary Targets 6 | . 3 2 1 Max Gunslinging Chain 1 | . 1 1 1 Shots Hit Robots 246 | 16 70 35 125 Core Hits 87 | 9 29 18 31 Critical Kills . | . . . . Critical Parts Destroyed . | . . . . Critical Strikes 22 | 1 5 2 14 Burn 22 | 1 5 2 14 Melee Attacks . | . . . . Impact . | . . . . Slashing . | . . . . Piercing . | . . . . Sneak Attacks . | . . . . Combat Hostiles . | . . . . Follow-up Attacks . | . . . . Damage Inflicted 3488 | 203 885 458 1942 Guns 3411 | 203 885 453 1870 Cannons . | . . . . Explosions . | . . . . Melee . | . . . . Ramming 5 | . . 5 . Kinetic . | . . . . Thermal 3483 | 203 885 453 1942 Explosive . | . . . . Electromagnetic . | . . . . Impact . | . . . . Slashing . | . . . . Piercing . | . . . . Highest Corruption . | . . . . Average Corruption . | . . . . Corruption Purged . | . . . . Corruption Blocked . | . . . . Overload Shots . | . . . . Overflow Damage . | . . . . Projectiles . | . . . . Explosions . | . . . . Melee . | . . . . Knockbacks . | . . . . Impact . | . . . . Kinetic . | . . . . Secondary . | . . . . Self-Inflicted Damage . | . . . . Shots . | . . . . Rammed 1 | . . 1 . Targets Rammed 1 | . . 1 . Kicked . | . . . . Crushed . | . . . . Highest Temperature 549 | 192 549 429 149 Average Temperature 126 | 64 165 136 24 Received Heat Transfer 958 | . 324 96 538 Effects 11 | . 9 2 . Shutdowns 4 | . 3 1 . Energy Bleed 2 | . 1 1 . Interference 1 | . 1 . . Matter Decay 1 | . 1 . . Damage (minor) 2 | . 2 . . Damage (major) 1 | . 1 . . Siege Activations . | . . . . Martial Activations . | . . . . Shielding Activations . | . . . . Robots Disrupted . | . . . . Combat Hostiles . | . . . . Robots Corrupted . | . . . . Combat Hostiles . | . . . . Parts Fried . | . . . . Impact Corruptions . | . . . . Robots Melted 5 | . 2 1 2 Combat Hostiles 5 | . 2 1 2 Parts Melted 27 | 3 9 2 13 Heat Transferred 10732 | 666 2997 1480 5589 Parts Sabotaged . | . . . . Parts Stolen . | . . . . Parts Stripped . | . . . . Power Chain Reactions . | . . . . Alert | -11 -10 -10 -10 ------- Run | Yrd Mat Min Sub Maximum Alert Level . | . . . . Low Security (%) 100 | 100 100 100 . Level 1 . | . . . . Level 2 . | . . . . Level 3 . | . . . . Level 4 . | . . . . Level 5 . | . . . . High Security . | . . . . Max Security . | . . . . Peak Influence 92 | 10 92 50 . Initial . | . . . . Average 4 | 1 8 2 . Influence Increases 713 | 40 263 150 260 Destroy 0b10 Robot/C 360 | . 160 120 80 Destroy 0b10 Robot/NC 90 | 40 50 . . Destroy Leader 78 | . 48 30 . Successful Hack 5 | . 5 . . Lose Combat Pursuer 180 | . . . 180 Influence Decreases 638 | 40 263 150 185 Time Decay 638 | 40 263 150 185 Squads Dispatched . | . . . . Investigation . | . . . . Extermination . | . . . . Reinforcement . | . . . . Assault . | . . . . Garrison . | . . . . Intercept . | . . . . Searches Triggered . | . . . . Construction Impeded . | . . . . Haulers Reinforced . | . . . . Active Scanning Responses . | . . . . Cargo Convoy Interrupts . | . . . . Stealth | -11 -10 -10 -10 --------- Run | Yrd Mat Min Sub Distress Signals 1 | . 1 . . Communications Jammed . | . . . . Distress Signals . | . . . . Times Spotted 42 | . 13 7 22 Peak Tracking Total 3 | . 3 2 2 Tactical Retreats 9 | . . . 9 Traps | -11 -10 -10 -10 ------- Run | Yrd Mat Min Sub Traps Triggered . | . . . . Indirectly . | . . . . Trap Hack Attempts . | . . . . Triggered . | . . . . Disarmed 16 | . 16 . . Reprogrammed . | . . . . Reused . | . . . . Traps Extracted . | . . . . Installed . | . . . . Triggered . | . . . . Machines | -11 -10 -10 -10 ---------- Run | Yrd Mat Min Sub Machines Disabled 1 | . . 1 . Max in Single Turn 1 | . . 1 . Machines Repaired . | . . . . Machines Dismantled . | . . . . Machines Sabotaged . | . . . . Overloaded Fab Kills . | . . . . Hacking | -11 -10 -10 -10 --------- Run | Yrd Mat Min Sub Machines Accessed 11 | . 9 1 1 Terminals 7 | . 7 . . Fabricators . | . . . . Repair Stations . | . . . . Recycling Units 2 | . 2 . . Scanalyzers . | . . . . Garrison Access . | . . . . Total Hacks 30 | . 25 1 4 Successful 24 | . 19 1 4 Failed 6 | . 6 . . Catastrophic . | . . . . Database Lockouts . | . . . . Manual 17 | . 17 . . Terminals 20 | . 20 . . Fabricators . | . . . . Repair Stations . | . . . . Recycling Units 5 | . 5 . . Scanalyzers . | . . . . Garrison Access . | . . . . Terminal Hacks 14 | . 9 1 4 Record 6 | . 2 . 4 Robot Analysis 1 | . 1 . . Open Door 1 | . . 1 . Locate Traps 1 | . 1 . . Disarm Traps 3 | . 3 . . Transport Status 1 | . 1 . . Hauler Manifests 1 | . 1 . . Fabricator Hacks . | . . . . Repair Station Hacks . | . . . . Recycling Unit Hacks 2 | . 2 . . Retrieve Components 2 | . 2 . . Scanalyzer . | . . . . Garrison Access Hacks . | . . . . Unauthorized Hacks 8 | . 8 . . Terminals 6 | . 6 . . Botnet 6 | . 6 . . Fabricators . | . . . . Repair Stations . | . . . . Recycling Units 2 | . 2 . . Reject 2 | . 2 . . Scanalyzers . | . . . . Garrison Access . | . . . . Data Cores Recovered . | . . . . Used . | . . . . Hacking Detections 6 | . 6 . . Full Trace Events . | . . . . Feedback Events . | . . . . Feedback Blocked . | . . . . Robot Schematics Acquired . | . . . . Robots Built . | . . . . Authchips . | . . . . Time . | . . . . Total Robot Build Rating . | . . . . Part Schematics Acquired . | . . . . Parts Built . | . . . . Authchips . | . . . . Time . | . . . . Total Part Build Rating . | . . . . Part Studies Acquired . | . . . . Parts Repaired . | . . . . Time . | . . . . Parts Recycled . | . . . . Recycled Matter . | . . . . Retrieved Matter . | . . . . Retrieved Components 10 | . 10 . . Parts Scanalyzed . | . . . . Part Schematics Acquired . | . . . . Parts Damaged . | . . . . Bothacking | -11 -10 -10 -10 ------------ Run | Yrd Mat Min Sub Used RIF Installer . | . . . . Robots Hacked . | . . . . Non-combat . | . . . . Combat . | . . . . Robot Hacks Applied . | . . . . Relay Couplers Released . | . . . . Fabnet Peak Effective % . | . . . . Robots Rewired . | . . . . Allies Hacked . | . . . . Hacks Repelled . | . . . . Allies | -11 -10 -10 -10 -------- Run | Yrd Mat Min Sub Total Allies . | . . . . Largest Group . | . . . . Highest-Rated Group . | . . . . Highest-Rated Ally . | . . . . Total Orders 1 | . . 1 . EXPLORE 1 | . . 1 . Ally Attacks . | . . . . Total Damage . | . . . . Kills . | . . . . Allies Corrupted . | . . . . Allies Melted . | . . . . Intel | -11 -10 -10 -10 ------- Run | Yrd Mat Min Sub Active Infowar (turns) 1566 | . . 400 1166 Structural 1566 | . . 400 1166 Robot Analysis Total 1 | . 1 . . Derelict Logs Recovered 2 | . . 1 1 Drone Launches 6 | . . 3 3 Drone Recoveries 5 | . . 3 2 Exploration | -11 -10 -10 -10 ------------- Run | Yrd Mat Min Sub Turns Passed 7760 | 241 1266 2270 3983 Spaces Moved 2627 | 130 610 989 898 Core 223 | 25 . . 198 Treads 2404 | 105 610 989 700 Legs . | . . . . Wheels . | . . . . Hover . | . . . . Flight . | . . . . Fastest Speed 50 | 50 160 160 240 Average Speed 254 | 147 160 211 382 Slowest Speed 800 | 160 160 240 800 Overloaded Moves . | . . . . Propulsion Burnouts . | . . . . Robots Hopped . | . . . . Potential Cave-ins . | . . . . Cave-ins Triggered . | . . . . Exploration Rate (%) 64 | 7 94 99 58 Regions Visited 3 Branch Regions 2 Pre-discovered Areas 1 | . . . 1 Known Exits Taken 3 | 1 1 1 . Unknown Exits Taken . | . . . . Scrap Searched 6 | . . . 6 Spaces Dug 1 | . . . 1 Terrain Destroyed 1 | . . . 1 Melee . | . . . . Projectile 1 | . . . 1 AOE . | . . . . Terrain Rammed . | . . . . Walls Destroyed . | . . . . Machines Disabled . | . . . . Actions | -11 -10 -10 -10 --------- Run | Yrd Mat Min Sub Total 3365 | 157 814 1127 1267 Wait 498 | . 144 95 259 Move 2624 | 129 609 988 898 Hop . | . . . . Pick Up 32 | 10 12 5 5 Fast Attach 4 | 1 . 2 1 Attach 13 | 6 2 3 2 Detach 2 | . 1 1 . Swap 14 | . 1 4 9 Drop 12 | . 1 7 4 Fire 165 | 11 44 21 89 Melee . | . . . . Ram . | . . . . Kick . | . . . . Crush 1 | . . 1 . Escape Stasis . | . . . . Rewire . | . . . . Trap . | . . . . Miscellaneous . | . . . . Route ------- -11/Scrapyard -10/Materials (discovered 4 exits: *Mat x2 / *Min / *Sub) -10/Mines (discovered 3 exits: *Mat x2 / *Sub) -10/Subcaves (discovered 3 exits: *Mat x2 / *Rec) History --------- Turn | Location | Event 28 | -11/Scrapyard | Identified exit to Materials 28 | -11/Scrapyard | Discovered exit to Materials (range 15) 242 | -11/Scrapyard | Entered Materials 242 | -10/Materials | Evolved 1 slot: Utility x1 306 | -10/Materials | Build established: Hacker-Mutant 560 | -10/Materials | Identified exit to Subcaves 560 | -10/Materials | Discovered exit to Subcaves (range 5) 673 | -10/Materials | Identified exit to Mines 673 | -10/Materials | Discovered exit to Mines (range 6) 796 | -10/Materials | Identified exit to Materials 796 | -10/Materials | Discovered exit to Materials (range 5) 1098 | -10/Materials | Discovered exit to Materials (range 16) 1508 | -10/Materials | Entered Mines 1520 | -10/Mines | Received a Rocket Launcher from a helpful Derelict 1714 | -10/Mines | Found a Scrap Suit stashed away for nefarious purposes 1757 | -10/Mines | Found Scrap Suit 2047 | -10/Mines | Assembled infested the area 2063 | -10/Mines | Build established: Hacker-Scrapper 2185 | -10/Mines | Found the Drone Emporium 2194 | -10/Mines | Found Prototype Device 2195 | -10/Mines | Identified Sensor Drone Bay 2223 | -10/Mines | Discovered exit to Materials (range 13) 2330 | -10/Mines | Discovered exit to Materials (range 4) 2476 | -10/Mines | Learned Materials stockpile data 2484 | -10/Mines | Build established: Hacker-Mutant 2493 | -10/Mines | Deemed a non-threat by the Exiles lab entrance 3761 | -10/Mines | Discovered exit to Subcaves (range 5) 3778 | -10/Mines | Entered Subcaves 3968 | -10/Subcaves | Identified exit to Materials 3968 | -10/Subcaves | Discovered exit to Materials (range 10) 4185 | -10/Subcaves | Ambushed by angry Subdweller bent on revenge 4209 | -10/Subcaves | Core integrity fell below 50% 4644 | -10/Subcaves | Visited Clippyterm 4652 | -10/Subcaves | Identified exit to Recycling 4927 | -10/Subcaves | Build established: Scavenger-Mutant 5361 | -10/Subcaves | Learned Materials terminal intel 5420 | -10/Subcaves | Build established: Hacker-Mutant 5436 | -10/Subcaves | Shifting Twisted Machinery released Battle Cannon 5443 | -10/Subcaves | Shifting Twisted Machinery released Shrapnel Trap 5465 | -10/Subcaves | Shifting Twisted Machinery released Battle Rifle 5470 | -10/Subcaves | Shifting Twisted Machinery released Hvy. Battle Rifle 5609 | -10/Subcaves | Disturbed a concealed Subdweller 6214 | -10/Subcaves | Learned location of Zion (-7) 6214 | -10/Subcaves | Met a Zionite searching for "candidates" 6318 | -10/Subcaves | Core integrity fell below 20% 7448 | -10/Subcaves | A swath of the cavern ceiling suddenly collapsed 7761 | -10/Subcaves | Destroyed by Autobeam Turret with Autobeam Last Messages --------------- 06709_ 41-MUO(z) destroyed. 06712_ AH-UWR(z) destroyed. 06747_ Dropped Lgt. Deuterium Engine. 06756_ Acquired 10 matter. 06762_ Subatomizers dissect the Structural Scanner. 06772_ Acquired Structural Scanner. 06773_ Subatomizers dissect the Mak. Axe. 06774_ Acquired 10 matter. 06785_ Subatomizers dissect the Mak. Axe. 07026_ Sensor Drone released from Sensor Drone Bay. A swath of the cavern ceiling suddenly collapses. 07624_ S-10 Pest springs to life. 07648_ S-10 Pest suffers critical hit (Burn). 07648_ Flight Unit melted. 07648_ S-10 Pest destroyed. 07735_ Destroyed Autobeam. 07735_ Autobeam Turret destroyed. Map ----- +----------------------------------------------------+ | ????????????????????????## ### % #### | | ???????????????????????### ##### %[ # # | | ???????????????????????### "######## | | ???????????????????????## " ######### ## % | | ???????????????????????##""""##???#### ####### | | ??????????????????????### " ######### ###??#### | | ??????????????????????### ######## ##??????? | | ??????????????????????## #### ###??????? | | ??????????????????????## #### # # ###??????? | | ??????????????????????## " ##"# ### ###??????? | | ??????????????????????### ""###"" ## ##??????? | | ??????????????????????###" "####" # ### ##??????? | | ???????????????????????##" "#### ##### ##??????? | | ???????????????????????###" "# # ### # ##??????? | | ???????????????????????###"" ## ###??????? | | ????????????????????????###""## ### ## ###??????? | | ????????????????????????### ######## #####???????? | | ?????????????????????????########## #####???????? | | ?????????????????????????#####???### ##?????????? | | ????????????????????###?????????### ###?????????? | | ????????????????????######????###### ##?????????? | | ???????????????????##>####????#### ##?????????? | | ??????????????????""##"#"###??## ###?????????? | | ??????????????????##"""#;###??## # ####?????????? | | ???????????????#####t ##"##?### ######??????????? | | ???????????????#####"##; @##?### ####???????????? | | ???????????????##;#####;; ##?## ###?????????????? | | ???????????????##";;;;;;;"##### ###?????????????? | | ???????????????#####;;;######### ##?????????????? | | ???????????????#####;;[;#### ;## ###?????????????? | | ??????????????????####n %;; ##""" ##?????????????? | | ??????????????????###### ;;;##"#####?????????????? | | ????????????????????#######;########?????????????? | | ??????????????????????###"""#####????????????????? | | ???????????????????????#######???????????????????? | | ???????????????????????#######???????????????????? | | ?????????????????????????????????????????????????? | | ?????????????????????????????????????????????????? | | ?????????????????????????????????????????????????? | | ?????????????????????????????????????????????????? | | ?????????????????????????????????????????????????? | | ?????????????????????????????????????????????????? | | ?????????????????????????????????????????????????? | | ?????????????????????????????????????????????????? | | ?????????????????????????????????????????????????? | | ?????????????????????????????????????????????????? | | ?????????????????????????????????????????????????? | | ?????????????????????????????????????????????????? | | ?????????????????????????????????????????????????? | | ?????????????????????????????????????????????????? | +----------------------------------------------------+ Best States ------------- Heat Dissipation 39 Energy Generation 18 Energy Capacity 250 Matter Stores 300 Matter Capacity 300 Sight Range 16 Terrain Scan Density 10 Armor Coverage 150 Resistance: KI 35 Resistance: TH 35 Resistance: EX 35 Resistance: EM 35 Resistance: I 35 Resistance: S 35 Resistance: P 35 Core Shielding 20 Evasion (%) 40 Recoil Reduction 2 Offensive Hacking 20 Item Schematics ----------------- None Robot Schematics ------------------ None Fabricated ------------ Nothing Repaired ---------- Nothing Studied --------- None Alien Tech Used ----------------- None Achievements -------------- None Challenges ------------ None Game ------ Seed DefenseHypervelocityCharge Manual? 0 Play Time 00:23:43 Cumulative 286.2 hours Start 2026.01.16 @ 10:43:45 End 2026.01.16 @ 11:04:46 Sessions 1 Manual Loads 0 Difficulty Explorer Special Mode None Game No. 443 Rogue 0 Adventurer 0 Explorer 443 Win Type - Total 0 Types 0/0/0/0/0/0/0/0/0/0 Lore% 75 Gallery% 69 Achievement% 55 Wizard Run 0 Options --------- Layout 1 ASCII 0 Keyboard 0 Movement Mouse Keybinds 1 Fullscreen 1 Font 24/Smallcaps Map View 50x35 Zoom Use 0% Tactical HUD 1 Map Filters NONE Filters NONE Steam 1 RUN: 023dd222-b67a-419a-ad4d-32f5b45e1a4e